[Event "Reykjavik Open 2025"]
[Site "Reykjavik, Iceland"]
[Date "2025.04.14"]
[Round "8.8"]
[White "Cornette, Matthieu"]
[Black "Bekker, Stefan"]
[Result "1-0"]
[WhiteElo "2528"]
[WhiteTitle "GM"]
[WhiteFideId "620084"]
[BlackElo "2358"]
[BlackTitle "FM"]
[BlackFideId "1022229"]
[TimeControl "90+30 +30 after 40 moves"]
[Variant "Standard"]
[ECO "B94"]
[Opening "Sicilian Defense: Najdorf Variation"]
[StudyName "Round 8"]
1. e4 { [%clk 1:30:55] } 1... c5 { [%clk 1:30:55] } 2. Nf3 { [%clk 1:30:58] } 2... d6 { [%clk 1:31:19] } 3. d4 { [%clk 1:30:53] } 3... cxd4 { [%clk 1:31:44] } 4. Nxd4 { [%clk 1:31:19] } 4... Nf6 { [%clk 1:32:07] } 5. Nc3 { [%clk 1:31:45] } 5... a6 { [%clk 1:32:31] } 6. Bg5 { [%clk 1:31:54] } 6... Nbd7 { [%clk 1:31:34] } 7. a3 { [%clk 1:31:12] } 7... Qc7 { [%clk 1:22:57] } 8. Qd2 { [%clk 1:30:09] } 8... e6 { [%clk 1:23:08] } 9. f3 { [%clk 1:29:27] } 9... Be7 { [%clk 1:22:39] } 10. g4 { [%clk 1:28:47] } 10... h5 { [%clk 1:21:25] } 11. gxh5 { [%clk 1:23:49] } 11... Rxh5 { [%clk 1:19:05] } 12. h4 { [%clk 1:18:39] } 12... b5 { [%clk 1:17:29] } 13. O-O-O { [%clk 1:17:42] } 13... Rb8 { [%clk 1:15:05] } 14. Kb1 { [%clk 1:07:04] } 14... Ne5 { [%clk 1:11:28] } 15. f4 { [%clk 1:03:32] } 15... Nc4 { [%clk 1:11:41] } 16. Bxc4 { [%clk 1:03:27] } 16... bxc4 { [%clk 1:12:00] } 17. Ka1 { [%clk 1:03:08] } 17... Qa5 { [%clk 1:08:00] } 18. Nc6 { [%clk 1:00:53] } 18... Nxe4 { [%clk 0:52:25] } 19. Nxe4 { [%clk 0:59:45] } 19... Qxd2 { [%clk 0:50:02] } 20. Rxd2 { [%clk 0:58:03] } 20... Bb7 { [%clk 0:44:42] } 21. Bxe7 { [%clk 0:43:42] } 21... Bxc6 { [%clk 0:40:41] } 22. Bxd6 { [%clk 0:44:09] } 22... c3 { [%clk 0:23:28] } 23. bxc3 { [%clk 0:43:37] } 23... Rd8 { [%clk 0:12:16] } 24. Re1 { [%clk 0:43:47] } 24... Rxh4 { [%clk 0:12:25] } 25. Nc5 { [%clk 0:41:49] } 25... Rh5 { [%clk 0:06:33] } 26. Nxa6 { [%clk 0:40:29] } 1-0

[Event "Reykjavik Open 2025"]
[Site "Reykjavik, Iceland"]
[Date "2025.04.14"]
[Round "8.9"]
[White "Ivic, Velimir"]
[Black "Song, Yuxin"]
[Result "1-0"]
[WhiteElo "2623"]
[WhiteTitle "GM"]
[WhiteFideId "950122"]
[BlackElo "2371"]
[BlackTitle "IM"]
[BlackFideId "8614300"]
[TimeControl "90+30 +30 after 40 moves"]
[Variant "Standard"]
[ECO "A50"]
[Opening "Indian Defense: Normal Variation"]
[StudyName "Round 8"]
1. d4 { [%clk 1:30:52] } 1... Nf6 { [%clk 1:30:55] } 2. c4 { [%clk 1:31:13] } 2... e6 { [%clk 1:31:21] } 3. Bf4 { [%clk 1:31:25] } 3... Bb4+ { [%clk 1:31:16] } 4. Nd2 { [%clk 1:31:23] } 4... c5 { [%clk 1:31:41] } 5. dxc5 { [%clk 1:31:10] } 5... Bxc5 { [%clk 1:32:07] } 6. e3 { [%clk 1:31:12] } 6... Nc6 { [%clk 1:32:31] } 7. Ngf3 { [%clk 1:30:39] } 7... O-O { [%clk 1:32:55] } 8. Be2 { [%clk 1:28:29] } 8... Re8 { [%clk 1:23:17] } 9. h3 { [%clk 1:21:52] } 9... b6 { [%clk 1:13:59] } 10. a3 { [%clk 1:19:20] } 10... Bb7 { [%clk 1:07:02] } 11. O-O { [%clk 1:18:24] } 11... h6 { [%clk 1:03:44] } 12. Bg3 { [%clk 1:17:33] } 12... Rc8 { [%clk 1:00:41] } 13. Rc1 { [%clk 1:15:19] } 13... Be7 { [%clk 0:55:30] } 14. Qa4 { [%clk 1:12:56] } 14... d6 { [%clk 0:53:49] } 15. Rfd1 { [%clk 1:11:24] } 15... Qd7 { [%clk 0:50:44] } 16. Qc2 { [%clk 1:08:45] } 16... Red8 { [%clk 0:50:43] } 17. b4 { [%clk 1:04:27] } 17... Qe8 { [%clk 0:48:25] } 18. Qb1 { [%clk 1:02:24] } 18... Nb8 { [%clk 0:44:32] } 19. Nd4 { [%clk 0:59:29] } 19... Nc6 { [%clk 0:43:10] } 20. Nb5 { [%clk 0:56:01] } 20... a6 { [%clk 0:42:06] } 21. Nc3 { [%clk 0:55:45] } 21... Ne5 { [%clk 0:39:54] } 22. f4 { [%clk 0:41:04] } 22... Ng6 { [%clk 0:33:58] } 23. Bd3 { [%clk 0:36:30] } 23... Rc7 { [%clk 0:25:33] } 24. Ne2 { [%clk 0:31:57] } 24... Bf8 { [%clk 0:22:50] } 25. Bf2 { [%clk 0:24:08] } 25... Rdc8 { [%clk 0:19:55] } 26. e4 { [%clk 0:21:47] } 26... Nd7 { [%clk 0:20:23] } 27. Nf3 { [%clk 0:18:22] } 27... Be7 { [%clk 0:15:28] } 28. Qb2 { [%clk 0:16:17] } 28... Bf6 { [%clk 0:14:58] } 29. Qd2 { [%clk 0:16:32] } 29... Ngf8 { [%clk 0:12:56] } 30. Ng3 { [%clk 0:15:53] } 30... Nh7 { [%clk 0:12:32] } 31. Re1 { [%clk 0:10:25] } 31... Be7 { [%clk 0:12:47] } 32. Rcd1 { [%clk 0:09:58] } 32... Ra8 { [%clk 0:10:44] } 33. Qe2 { [%clk 0:09:22] } 33... a5 { [%clk 0:08:45] } 34. Nd4 { [%clk 0:07:28] } 34... axb4 { [%clk 0:08:36] } 35. axb4 { [%clk 0:07:35] } 35... Rcc8 { [%clk 0:06:19] } 36. Nb5 { [%clk 0:06:15] } 36... Nhf8 { [%clk 0:06:06] } 37. Qb2 { [%clk 0:05:56] } 37... Ng6 { [%clk 0:06:01] } 38. Bf1 { [%clk 0:04:49] } 38... Qf8 { [%clk 0:05:39] } 39. Be3 { [%clk 0:02:39] } 39... Ra4 { [%clk 0:00:38] } 40. Nc3 { [%clk 0:01:16] } 40... Raa8 { [%clk 0:01:06] } 41. Kh2 { [%clk 0:28:18] } 41... Ba6 { [%clk 0:21:10] } 42. Qb3 { [%clk 0:26:25] } 42... Qd8 { [%clk 0:20:12] } 43. Nb5 { [%clk 0:22:00] } 43... Bxb5 { [%clk 0:18:47] } 44. cxb5 { [%clk 0:22:24] } 44... Ngf8 { [%clk 0:16:18] } 45. Ne2 { [%clk 0:18:52] } 45... Nf6 { [%clk 0:14:21] } 46. Nc3 { [%clk 0:16:33] } 46... Qc7 { [%clk 0:14:19] } 47. Rc1 { [%clk 0:16:44] } 47... Qb7 { [%clk 0:14:36] } 48. Bd3 { [%clk 0:16:45] } 48... N8d7 { [%clk 0:13:29] } 49. Bd4 { [%clk 0:12:49] } 49... e5 { [%clk 0:12:08] } 50. fxe5 { [%clk 0:13:00] } 50... Nxe5 { [%clk 0:12:33] } 51. Bxe5 { [%clk 0:12:48] } 51... dxe5 { [%clk 0:13:01] } 52. Bc4 { [%clk 0:13:09] } 52... Rf8 { [%clk 0:11:42] } 53. Bd5 { [%clk 0:11:47] } 53... Nxd5 { [%clk 0:11:10] } 54. Nxd5 { [%clk 0:12:15] } 54... Bd8 { [%clk 0:09:09] } 55. Rf1 { [%clk 0:11:35] } 55... Rc8 { [%clk 0:08:25] } 56. Rc4 { [%clk 0:10:52] } 56... Bg5 { [%clk 0:07:35] } 57. Rc3 { [%clk 0:09:18] } 57... Rxc3 { [%clk 0:05:26] } 58. Qxc3 { [%clk 0:09:47] } 58... Bf4+ { [%clk 0:05:17] } 59. g3 { [%clk 0:10:01] } 59... Bg5 { [%clk 0:05:43] } 60. h4 { [%clk 0:08:15] } 60... Rc8 { [%clk 0:05:27] } 61. Qxe5 { [%clk 0:07:28] } 61... Rc2+ { [%clk 0:05:13] } 62. Kg1 { [%clk 0:07:30] } 62... Qd7 { [%clk 0:05:38] } 63. hxg5 { [%clk 0:06:56] } 63... Qh3 { [%clk 0:06:02] } 64. Qe8+ { [%clk 0:06:41] } 64... Kh7 { [%clk 0:06:30] } 65. g6+ { [%clk 0:07:06] } 65... fxg6 { [%clk 0:06:47] } 66. Nf6+ { [%clk 0:07:32] } 66... gxf6 { [%clk 0:07:12] } 67. Qf7+ { [%clk 0:07:59] } 67... Kh8 { [%clk 0:07:36] } 68. Qxf6+ { [%clk 0:08:24] } 68... Kh7 { [%clk 0:08:00] } 69. Qe7+ { [%clk 0:08:50] } 1-0

[Event "Reykjavik Open 2025"]
[Site "Reykjavik, Iceland"]
[Date "2025.04.14"]
[Round "8.10"]
[White "Ruiz Buendia, Miguel"]
[Black "Jacobson, Brandon"]
[Result "0-1"]
[WhiteElo "2353"]
[WhiteTitle "FM"]
[WhiteFideId "24537675"]
[BlackElo "2570"]
[BlackTitle "GM"]
[BlackFideId "30901561"]
[TimeControl "90+30 +30 after 40 moves"]
[Variant "Standard"]
[ECO "C54"]
[Opening "Italian Game: Classical Variation, Greco Gambit"]
[StudyName "Round 8"]
1. e4 { [%clk 1:30:55] } 1... e5 { [%clk 1:29:50] } 2. Nf3 { [%clk 1:31:19] } 2... Nc6 { [%clk 1:30:14] } 3. Bc4 { [%clk 1:31:42] } 3... Bc5 { [%clk 1:28:29] } 4. c3 { [%clk 1:31:54] } 4... Nf6 { [%clk 1:28:31] } 5. d4 { [%clk 1:32:09] } 5... exd4 { [%clk 1:28:51] } 6. e5 { [%clk 1:32:30] } 6... d5 { [%clk 1:28:50] } 7. Bb5 { [%clk 1:32:48] } 7... Ne4 { [%clk 1:28:31] } 8. cxd4 { [%clk 1:32:56] } 8... Bb6 { [%clk 1:28:53] } 9. Nc3 { [%clk 1:33:16] } 9... O-O { [%clk 1:28:28] } 10. Be3 { [%clk 1:33:32] } 10... Bd7 { [%clk 1:22:35] } 11. Bxc6 { [%clk 1:22:42] } 11... Bxc6 { [%clk 1:22:43] } 12. O-O { [%clk 1:21:22] } 12... f5 { [%clk 1:17:12] } 13. exf6 { [%clk 1:20:35] } 13... Nxf6 { [%clk 1:14:08] } 14. a4 { [%clk 1:12:36] } 14... a5 { [%clk 1:11:54] } 15. Ne5 { [%clk 1:11:11] } 15... Qd6 { [%clk 1:09:20] } 16. Nxc6 { [%clk 0:58:58] } 16... bxc6 { [%clk 1:05:27] } 17. Rc1 { [%clk 0:57:48] } 17... Rab8 { [%clk 0:59:37] } 18. h3 { [%clk 0:50:38] } 18... Ba7 { [%clk 0:55:37] } 19. Rc2 { [%clk 0:43:19] } 19... Qb4 { [%clk 0:34:58] } 20. Qd3 { [%clk 0:40:14] } 20... Ne8 { [%clk 0:30:02] } 21. b3 { [%clk 0:31:49] } 21... Nd6 { [%clk 0:17:15] } 22. Rb1 { [%clk 0:29:41] } 22... Nf5 { [%clk 0:16:06] } 23. Ne2 { [%clk 0:28:00] } 23... Nxe3 { [%clk 0:15:05] } 24. fxe3 { [%clk 0:27:17] } 24... Rf6 { [%clk 0:14:52] } 25. Rc3 { [%clk 0:23:38] } 25... Re8 { [%clk 0:10:09] } 26. Rbc1 { [%clk 0:22:54] } 26... Rfe6 { [%clk 0:09:34] } 27. Qc2 { [%clk 0:13:10] } 27... Qe7 { [%clk 0:08:48] } 28. Ng3 { [%clk 0:09:34] } 28... Qg5 { [%clk 0:05:23] } 29. Nf1 { [%clk 0:08:34] } 29... Bxd4 { [%clk 0:05:31] } 30. Rxc6 { [%clk 0:07:04] } 30... Rxe3 { [%clk 0:05:40] } 31. Nxe3 { [%clk 0:06:39] } 31... Bxe3+ { [%clk 0:06:05] } 32. Kh2 { [%clk 0:04:26] } 32... Bf4+ { [%clk 0:06:30] } 33. Kg1 { [%clk 0:04:30] } 33... Bxc1 { [%clk 0:06:45] } 34. Qxc1 { [%clk 0:04:50] } 34... Qg3 { [%clk 0:07:11] } 35. Kf1 { [%clk 0:04:47] } 35... Rf8+ { [%clk 0:07:38] } 36. Kg1 { [%clk 0:04:50] } 36... Rf2 { [%clk 0:08:03] } 0-1

[Event "Reykjavik Open 2025"]
[Site "Reykjavik, Iceland"]
[Date "2025.04.14"]
[Round "8.12"]
[White "Friedel, Joshua"]
[Black "Li, Guohao"]
[Result "1-0"]
[WhiteElo "2552"]
[WhiteTitle "GM"]
[WhiteFideId "2017199"]
[BlackElo "2356"]
[BlackFideId "8619999"]
[TimeControl "90+30 +30 after 40 moves"]
[Variant "Standard"]
[ECO "E94"]
[Opening "King's Indian Defense: Orthodox Variation, Positional Defense"]
[StudyName "Round 8"]
1. c4 { [%clk 1:30:58] } 1... d6 { [%clk 1:30:52] } 2. d4 { [%clk 1:29:02] } 2... e5 { [%clk 1:31:12] } 3. Nc3 { [%clk 1:27:01] } 3... Nd7 { [%clk 1:31:09] } 4. Nf3 { [%clk 1:26:41] } 4... Ngf6 { [%clk 1:31:24] } 5. e4 { [%clk 1:26:16] } 5... g6 { [%clk 1:31:25] } 6. Be2 { [%clk 1:25:40] } 6... Bg7 { [%clk 1:31:48] } 7. O-O { [%clk 1:26:04] } 7... O-O { [%clk 1:32:11] } 8. Qc2 { [%clk 1:19:07] } 8... exd4 { [%clk 1:31:50] } 9. Nxd4 { [%clk 1:19:31] } 9... Re8 { [%clk 1:32:02] } 10. Rd1 { [%clk 1:18:49] } 10... c6 { [%clk 1:30:58] } 11. Bf4 { [%clk 1:14:15] } 11... Nc5 { [%clk 1:29:17] } 12. Bf3 { [%clk 1:13:00] } 12... Bg4 { [%clk 1:29:41] } 13. Bxg4 { [%clk 1:10:34] } 13... Nxg4 { [%clk 1:30:07] } 14. Bg3 { [%clk 1:03:33] } 14... Nf6 { [%clk 1:29:08] } 15. f3 { [%clk 1:00:21] } 15... Nh5 { [%clk 1:29:11] } 16. Bf2 { [%clk 0:59:29] } 16... Qe7 { [%clk 1:27:05] } 17. Rab1 { [%clk 0:52:01] } 17... a6 { [%clk 1:24:55] } 18. b4 { [%clk 0:47:31] } 18... Ne6 { [%clk 1:24:45] } 19. Nxe6 { [%clk 0:44:59] } 19... Qxe6 { [%clk 1:25:03] } 20. Ne2 { [%clk 0:44:57] } 20... Rad8 { [%clk 1:20:15] } 21. g4 { [%clk 0:39:28] } 21... Nf6 { [%clk 1:20:18] } 22. Bg3 { [%clk 0:39:24] } 22... h5 { [%clk 1:14:47] } 23. h3 { [%clk 0:26:28] } 23... hxg4 { [%clk 1:13:29] } 24. hxg4 { [%clk 0:26:51] } 24... Nxg4 { [%clk 0:59:09] } 25. Nf4 { [%clk 0:25:56] } 25... Qc8 { [%clk 0:59:38] } 26. fxg4 { [%clk 0:26:15] } 26... Qxg4 { [%clk 1:00:05] } 27. Qg2 { [%clk 0:23:49] } 27... g5 { [%clk 0:48:50] } 28. Nh3 { [%clk 0:23:23] } 28... Qxe4 { [%clk 0:49:08] } 29. Nxg5 { [%clk 0:20:03] } 29... Qg4 { [%clk 0:34:55] } 30. Bf2 { [%clk 0:17:59] } 30... Qxc4 { [%clk 0:34:55] } 31. Re1 { [%clk 0:13:39] } 31... Qxa2 { [%clk 0:31:32] } 32. Qg4 { [%clk 0:11:22] } 32... f6 { [%clk 0:17:53] } 33. Ne6 { [%clk 0:10:09] } 33... Rd7 { [%clk 0:18:22] } 34. Nd4 { [%clk 0:09:21] } 34... Re5 { [%clk 0:13:53] } 35. Qxd7 { [%clk 0:09:00] } 35... Rg5+ { [%clk 0:14:17] } 36. Kf1 { [%clk 0:09:17] } 1-0

[Event "Reykjavik Open 2025"]
[Site "Reykjavik, Iceland"]
[Date "2025.04.14"]
[Round "8.23"]
[White "Gorshtein, Ido"]
[Black "Nayak Rajesh"]
[Result "1-0"]
[WhiteElo "2557"]
[WhiteTitle "GM"]
[WhiteFideId "2815532"]
[BlackElo "2277"]
[BlackTitle "FM"]
[BlackFideId "35017152"]
[TimeControl "90+30 +30 after 40 moves"]
[Variant "Standard"]
[ECO "E04"]
[Opening "Catalan Opening: Open Defense"]
[StudyName "Round 8"]
1. d4 { [%clk 1:30:57] } 1... Nf6 { [%clk 1:30:48] } 2. c4 { [%clk 1:31:22] } 2... e6 { [%clk 1:30:34] } 3. Nf3 { [%clk 1:31:45] } 3... d5 { [%clk 1:30:31] } 4. g3 { [%clk 1:31:57] } 4... dxc4 { [%clk 1:30:36] } 5. Bg2 { [%clk 1:32:10] } 5... c6 { [%clk 1:30:52] } 6. a4 { [%clk 1:31:27] } 6... Bb4+ { [%clk 1:31:04] } 7. Nc3 { [%clk 1:30:14] } 7... c5 { [%clk 1:25:46] } 8. O-O { [%clk 1:29:54] } 8... Nc6 { [%clk 1:24:37] } 9. dxc5 { [%clk 1:26:11] } 9... Qxd1 { [%clk 1:20:38] } 10. Nxd1 { [%clk 1:20:12] } 10... Ne4 { [%clk 1:12:21] } 11. Ne3 { [%clk 1:16:18] } 11... c3 { [%clk 1:11:24] } 12. Nc4 { [%clk 1:02:28] } 12... Bxc5 { [%clk 1:05:59] } 13. e3 { [%clk 0:51:57] } 13... Bb4 { [%clk 0:48:26] } 14. bxc3 { [%clk 0:51:00] } 14... Nxc3 { [%clk 0:48:44] } 15. a5 { [%clk 0:46:02] } 15... Rb8 { [%clk 0:38:41] } 16. Ba3 { [%clk 0:45:05] } 16... Bxa3 { [%clk 0:35:52] } 17. Rxa3 { [%clk 0:45:26] } 17... Nb5 { [%clk 0:36:16] } 18. Rb3 { [%clk 0:42:09] } 18... a6 { [%clk 0:36:19] } 19. Ng5 { [%clk 0:41:14] } 19... Bd7 { [%clk 0:28:44] } 20. Rd1 { [%clk 0:40:06] } 20... f6 { [%clk 0:26:14] } 21. Rbd3 { [%clk 0:36:33] } 21... fxg5 { [%clk 0:22:51] } 22. Rxd7 { [%clk 0:36:56] } 22... O-O { [%clk 0:23:14] } 23. Bh3 { [%clk 0:31:55] } 23... Rf6 { [%clk 0:22:42] } 24. R1d3 { [%clk 0:31:13] } 24... Rc8 { [%clk 0:19:53] } 25. Rxb7 { [%clk 0:28:48] } 25... Nb4 { [%clk 0:17:28] } 26. Rdd7 { [%clk 0:28:52] } 26... h5 { [%clk 0:14:58] } 27. Rxg7+ { [%clk 0:28:01] } 27... Kf8 { [%clk 0:15:21] } 28. Rh7 { [%clk 0:27:48] } 28... Kg8 { [%clk 0:15:41] } 29. Bf1 { [%clk 0:27:44] } 29... Rc5 { [%clk 0:15:21] } 30. Rhg7+ { [%clk 0:27:33] } 30... Kf8 { [%clk 0:15:30] } 31. Rgd7 { [%clk 0:27:57] } 31... Kg8 { [%clk 0:15:42] } 32. Nd2 { [%clk 0:28:11] } 32... Rd5 { [%clk 0:15:09] } 33. Ne4 { [%clk 0:28:31] } 33... Rff5 { [%clk 0:14:32] } 34. Rb8+ { [%clk 0:28:45] } 34... Rf8 { [%clk 0:14:57] } 35. Nf6+ { [%clk 0:29:10] } 35... Kh8 { [%clk 0:15:24] } 36. Rh7# { [%clk 0:29:29] } 1-0

[Event "Reykjavik Open 2025"]
[Site "Reykjavik, Iceland"]
[Date "2025.04.14"]
[Round "8.24"]
[White "Adhiban, B."]
[Black "Priansh Das"]
[Result "0-1"]
[WhiteElo "2554"]
[WhiteTitle "GM"]
[WhiteFideId "5018471"]
[BlackElo "2262"]
[BlackTitle "FM"]
[BlackFideId "45029946"]
[TimeControl "90+30 +30 after 40 moves"]
[Variant "Standard"]
[ECO "C42"]
[Opening "Petrov's Defense: Nimzowitsch Attack"]
[StudyName "Round 8"]
1. e4 { [%clk 1:30:54] } 1... e5 { [%clk 1:30:49] } 2. Nf3 { [%clk 1:31:21] } 2... Nf6 { [%clk 1:31:15] } 3. Nxe5 { [%clk 1:31:45] } 3... d6 { [%clk 1:31:41] } 4. Nf3 { [%clk 1:32:11] } 4... Nxe4 { [%clk 1:32:05] } 5. Nc3 { [%clk 1:32:39] } 5... Nxc3 { [%clk 1:32:27] } 6. dxc3 { [%clk 1:33:06] } 6... Be7 { [%clk 1:32:50] } 7. Bf4 { [%clk 1:33:16] } 7... Nd7 { [%clk 1:32:28] } 8. Qd2 { [%clk 1:33:29] } 8... O-O { [%clk 1:32:20] } 9. O-O-O { [%clk 1:33:54] } 9... Re8 { [%clk 1:28:33] } 10. h4 { [%clk 1:34:18] } 10... Nf6 { [%clk 1:25:38] } 11. Bd3 { [%clk 1:23:12] } 11... d5 { [%clk 1:11:37] } 12. Ng5 { [%clk 1:00:36] } 12... h6 { [%clk 1:05:14] } 13. f3 { [%clk 0:56:06] } 13... Nh5 { [%clk 0:53:16] } 14. Be3 { [%clk 0:12:56] } 14... Ng3 { [%clk 0:50:49] } 15. Rh2 { [%clk 0:10:33] } 15... Bd6 { [%clk 0:45:39] } 16. Bf4 { [%clk 0:08:11] } 16... Ne2+ { [%clk 0:39:17] } 17. Bxe2 { [%clk 0:08:14] } 17... Rxe2 { [%clk 0:39:41] } 18. Qd4 { [%clk 0:03:54] } 18... c5 { [%clk 0:39:33] } 19. Qa4 { [%clk 0:03:57] } 19... b5 { [%clk 0:39:19] } 20. Qxb5 { [%clk 0:04:22] } 20... Bxf4+ { [%clk 0:39:26] } 21. Kb1 { [%clk 0:04:51] } 21... Bxh2 { [%clk 0:38:34] } 22. Qxe2 { [%clk 0:05:19] } 22... hxg5 { [%clk 0:38:38] } 23. hxg5 { [%clk 0:05:48] } 23... Bf4 { [%clk 0:37:34] } 24. c4 { [%clk 0:04:35] } 24... Ba6 { [%clk 0:36:27] } 25. g6 { [%clk 0:05:01] } 25... Bxc4 { [%clk 0:36:30] } 26. gxf7+ { [%clk 0:05:28] } 26... Kxf7 { [%clk 0:36:48] } 0-1

[Event "Reykjavik Open 2025"]
[Site "Reykjavik, Iceland"]
[Date "2025.04.14"]
[Round "8.25"]
[White "Stefansson, Vignir Vatnar"]
[Black "Kracht, Raphael"]
[Result "1-0"]
[WhiteElo "2536"]
[WhiteTitle "GM"]
[WhiteFideId "2308649"]
[BlackElo "2196"]
[BlackTitle "CM"]
[BlackFideId "16214382"]
[TimeControl "90+30 +30 after 40 moves"]
[Variant "Standard"]
[ECO "C54"]
[Opening "Italian Game: Classical Variation, Greco Gambit, Traditional Line"]
[StudyName "Round 8"]
1. e4 { [%clk 1:30:56] } 1... e5 { [%clk 1:18:27] } 2. Nf3 { [%clk 1:31:12] } 2... Nc6 { [%clk 1:18:53] } 3. Bc4 { [%clk 1:31:23] } 3... Bc5 { [%clk 1:19:16] } 4. c3 { [%clk 1:31:48] } 4... Nf6 { [%clk 1:19:42] } 5. d4 { [%clk 1:32:13] } 5... exd4 { [%clk 1:20:08] } 6. cxd4 { [%clk 1:32:38] } 6... Bb4+ { [%clk 1:20:32] } 7. Nbd2 { [%clk 1:33:03] } 7... Nxe4 { [%clk 1:17:03] } 8. d5 { [%clk 1:33:27] } 8... Ne7 { [%clk 1:11:29] } 9. O-O { [%clk 1:33:48] } 9... Bxd2 { [%clk 1:00:05] } 10. Nxd2 { [%clk 1:34:09] } 10... Nxd2 { [%clk 0:51:12] } 11. Bxd2 { [%clk 1:34:20] } 11... d6 { [%clk 0:40:08] } 12. Re1 { [%clk 1:31:25] } 12... O-O { [%clk 0:38:42] } 13. Rc1 { [%clk 1:31:37] } 13... Ng6 { [%clk 0:33:45] } 14. Bf1 { [%clk 1:29:57] } 14... Bd7 { [%clk 0:20:09] } 15. Qb3 { [%clk 1:29:45] } 15... c5 { [%clk 0:12:16] } 16. Qxb7 { [%clk 1:27:31] } 16... Qc8 { [%clk 0:11:50] } 17. Qb3 { [%clk 1:19:13] } 17... Rb8 { [%clk 0:10:50] } 18. Qg3 { [%clk 1:19:33] } 18... Rxb2 { [%clk 0:07:23] } 19. Bc3 { [%clk 1:19:31] } 19... Rxa2 { [%clk 0:07:10] } 20. Qxd6 { [%clk 1:19:04] } 20... c4 { [%clk 0:03:05] } 21. Ra1 { [%clk 1:10:34] } 21... Rxa1 { [%clk 0:02:05] } 22. Rxa1 { [%clk 1:10:57] } 22... Qb7 { [%clk 0:01:07] } 23. Bxc4 { [%clk 1:08:56] } 23... Bb5 { [%clk 0:01:23] } 24. Ba2 { [%clk 1:06:24] } 24... Rc8 { [%clk 0:01:14] } 25. Qb4 { [%clk 1:06:48] } 25... Qc7 { [%clk 0:00:36] } 26. Bb2 { [%clk 1:05:47] } 26... Qc5 { [%clk 0:00:44] } 27. Qd2 { [%clk 1:05:22] } 27... Qd6 { [%clk 0:00:46] } 28. Re1 { [%clk 1:00:34] } 28... Bd7 { [%clk 0:00:32] } 29. Re3 { [%clk 0:54:57] } 29... Kh8 { [%clk 0:00:32] } 30. g3 { [%clk 0:51:00] } 30... f6 { [%clk 0:00:42] } 31. Qe2 { [%clk 0:50:26] } 31... h6 { [%clk 0:00:32] } 32. h4 { [%clk 0:47:24] } 32... a5 { [%clk 0:00:36] } 33. Qh5 { [%clk 0:46:23] } 33... Ne5 { [%clk 0:00:36] } 34. Rxe5 { [%clk 0:45:25] } 34... fxe5 { [%clk 0:00:57] } 35. Bxe5 { [%clk 0:45:28] } 35... Be8 { [%clk 0:00:34] } 36. Qxe8+ { [%clk 0:41:33] } 36... Rxe8 { [%clk 0:01:00] } 37. Bxd6 { [%clk 0:41:59] } 37... Re2 { [%clk 0:00:38] } 38. Bc4 { [%clk 0:42:18] } 38... Re1+ { [%clk 0:00:36] } 39. Kg2 { [%clk 0:42:43] } 39... a4 { [%clk 0:00:37] } 40. Ba3 { [%clk 0:42:31] } 40... Re4 { [%clk 0:00:32] } 41. Bb5 { [%clk 0:42:54] } 41... Kg8 { [%clk 0:00:40] } 42. d6 { [%clk 0:43:18] } 42... Kf7 { [%clk 0:00:38] } 43. d7 { [%clk 0:43:43] } 43... Rd4 { [%clk 0:00:56] } 44. Bc5 { [%clk 0:43:59] } 1-0